fUSD/lending_fUSD_20250219
["ID","MTS","AMOUNT","RATE_DAILY","PERIOD"]
[353605679,1739957023894,-500.0,0.00014191,2]
[353605680,1739957023922,-500.0,0.00014191,2]
[353605681,1739957023950,-500.0,0.00014191,2]
[353605682,1739957023979,-691.67,0.00014191,2]
[353605683,1739957024012,-580.48,0.00014191,2]
[353605684,1739957024042,-1333.98,0.00014191,2]
[353605685,1739957024074,-2090.9,0.00014191,2]
[353605686,1739957024104,-823.1,0.00014191,2]
[353605687,1739957024133,-552.5,0.00014191,2]
[353605688,1739957024164,-733.25,0.00014191,2]
[353605689,1739957024193,-1331.05,0.00014191,2]
[353605690,1739957024223,-500.0,0.00014191,2]
[353605691,1739957024253,-153.40119026,0.00014215,2]
[353605692,1739957024283,-1921.55,0.00014272,2]
[353605693,1739957024313,-500.0,0.00014273,2]
[353605694,1739957024340,-500.0,0.00014273,2]
[353605695,1739957024369,-543.01,0.00014273,2]
[353605696,1739957024398,-634.82,0.00014273,2]
[353605697,1739957024429,-500.0,0.00014273,2]
[353605698,1739957024459,-500.0,0.00014273,2]
[353605699,1739957024489,-541.04,0.00014273,2]
[353605700,1739957024519,-500.0,0.00014273,2]
[353605701,1739957024548,-725.34,0.00014273,2]
[353605702,1739957024577,-778.48,0.00014273,2]
[353605703,1739957024607,-500.0,0.00014273,2]
[353605704,1739957024636,-500.0,0.00014273,2]
[353605705,1739957024666,-633.81,0.00014273,2]
[353605706,1739957024696,-587.48381674,0.00014273,2]
[353605707,1739957024726,-562.62,0.00014273,2]
[353605708,1739957024757,-844.44,0.00014273,2]
[353605709,1739957024787,-500.0,0.00014273,2]
[353605710,1739957024819,-597.38360723,0.00014273,2]
[353605711,1739957024851,-500.0,0.00014273,2]
[353605712,1739957024884,-500.0,0.00014273,2]
[353605713,1739957024921,-500.0,0.00014273,2]
[353605714,1739957024957,-722.42,0.00014273,2]
[353605715,1739957024992,-510.18,0.00014273,2]
[353605716,1739957025027,-500.0,0.00014273,2]
[353605717,1739957025063,-650.55,0.00014273,2]
[353605718,1739957025097,-500.0,0.00014273,2]
[353605719,1739957025129,-500.0,0.00014273,2]
[353605720,1739957025160,-500.0,0.00014273,2]
[353605721,1739957025191,-1055.45,0.00014273,2]
[353605722,1739957025221,-500.0,0.00014273,2]
[353605723,1739957025251,-500.0,0.00014273,2]
[353605724,1739957025280,-500.0,0.00014273,2]
[353605725,1739957025312,-691.51,0.00014273,2]
[353605726,1739957025342,-909.51,0.00014273,2]
[353605727,1739957025371,-500.0,0.00014273,2]
[353605728,1739957025401,-500.0,0.00014273,2]
[353605729,1739957025432,-667.83,0.00014273,2]
[353605730,1739957025461,-500.0,0.00014273,2]
[353605731,1739957025491,-531.54,0.00014273,2]
[353605732,1739957025521,-647.18,0.00014273,2]
[353605733,1739957025550,-649.90656829,0.00014273,2]
[353605734,1739957025578,-500.0,0.00014273,2]
[353605735,1739957025607,-500.0,0.00014273,2]
[353605736,1739957025636,-930.4,0.00014273,2]
[353605737,1739957025665,-500.0,0.00014273,2]
[353605738,1739957025695,-625.34,0.00014273,2]
[353605739,1739957025724,-500.0,0.00014273,2]
[353605740,1739957025754,-515.28,0.00014273,2]
[353605741,1739957025785,-500.0,0.00014273,2]
[353605742,1739957025815,-551.52,0.00014273,2]
[353605743,1739957025847,-500.0,0.00014273,2]
[353605744,1739957025878,-500.0,0.00014273,2]
[353605745,1739957025910,-500.0,0.00014273,2]
[353605746,1739957025944,-770.16,0.00014273,2]
[353605747,1739957025975,-535.40072884,0.00014273,2]
[353605748,1739957026006,-644.99821761,0.00014273,2]
[353605749,1739957026038,-500.0,0.00014273,2]
[353605750,1739957026069,-500.0,0.00014273,2]
[353605751,1739957026100,-500.0,0.00014273,2]
[353605752,1739957026132,-500.0,0.00014273,2]
[353605753,1739957026163,-500.0,0.00014273,2]
[353605754,1739957026194,-500.0,0.00014273,2]
[353605755,1739957026224,-512.49,0.00014273,2]
[353605756,1739957026254,-533.08,0.00014273,2]
[353605757,1739957026284,-628.45,0.00014273,2]
[353605758,1739957026315,-743.05,0.00014273,2]
[353605759,1739957026346,-500.0,0.00014273,2]
[353605760,1739957026375,-1540.98,0.00014273,2]
[353605761,1739957026404,-545.22,0.00014273,2]
[353605762,1739957026434,-807.24,0.00014273,2]
[353605763,1739957026465,-514.11,0.00014273,2]
[353605764,1739957026666,-518.50621479,0.00014273,2]
[353605765,1739957026707,-819.39,0.00014273,2]
[353605766,1739957026739,-500.0,0.00014273,2]
[353605767,1739957026772,-572.21,0.00014273,2]
[353605768,1739957026805,-500.0,0.00014273,2]
[353605769,1739957026838,-649.94,0.00014273,2]
[353605770,1739957026874,-500.0,0.00014273,2]
[353605771,1739957026906,-500.0,0.00014273,2]
[353605772,1739957026939,-500.0,0.00014273,2]
[353605773,1739957026969,-500.0,0.00014273,2]
[353605774,1739957026999,-1211.58,0.00014273,2]
[353605775,1739957027030,-500.0,0.00014273,2]
[353605776,1739957027060,-1135.36,0.00014273,2]
[353605777,1739957027089,-500.0,0.00014273,2]
[353605778,1739957027119,-500.0,0.00014273,2]
[353605779,1739957027151,-722.48,0.00014273,2]
[353605780,1739957027181,-500.0,0.00014273,2]
[353605781,1739957027210,-1272.14,0.00014273,2]
[353605782,1739957027239,-500.0,0.00014273,2]
[353605783,1739957027266,-500.0,0.00014273,2]
[353605784,1739957027295,-500.0,0.00014273,2]
[353605785,1739957027323,-712.89,0.00014273,2]
[353605786,1739957027351,-500.0,0.00014273,2]
[353605787,1739957027380,-500.0,0.00014273,2]
[353605788,1739957027409,-500.0,0.00014273,2]
[353605789,1739957027438,-500.0,0.00014273,2]
[353605790,1739957027467,-329.942546,0.00014273,2]
[353605791,1739957027496,-862.66,0.00014273,2]
[353605792,1739957027525,-1233.72,0.00014273,2]
[353605793,1739957027552,-740.17,0.00014273,2]
[353605794,1739957027580,-758.66,0.00014273,2]
[353605795,1739957027608,-500.0,0.00014273,2]
[353605796,1739957027636,-601.16,0.00014273,2]
[353605797,1739957027665,-332.2604962,0.00014273,2]
[353605798,1739957027693,-689.44,0.00014273,2]
[353605799,1739957027721,-593.48,0.00014273,2]
[353605800,1739957027749,-500.0,0.00014273,2]
[353605801,1739957027778,-774.93,0.00014273,2]
[353605802,1739957027808,-500.0,0.00014273,2]
[353605803,1739957027839,-1397.033156,0.00014273,2]
[353605804,1739957027874,-500.0,0.00014273,2]
[353605805,1739957027906,-1325.26,0.00014273,2]
[353605806,1739957027937,-500.0,0.00014273,2]
[353605807,1739957027967,-750.16,0.00014273,2]
[353605808,1739957027996,-500.0,0.00014273,2]
[353605809,1739957028025,-500.0,0.00014273,2]
[353605810,1739957028054,-1394.43,0.00014273,2]
[353605811,1739957028085,-500.0,0.00014273,2]
[353605812,1739957028115,-500.0,0.00014273,2]
[353605813,1739957028144,-500.0,0.00014273,2]
[353605814,1739957028173,-638.51,0.00014273,2]
[353605815,1739957028203,-500.0,0.00014273,2]
[353605816,1739957028232,-500.0,0.00014273,2]
[353605817,1739957028262,-500.0,0.00014273,2]
[353605818,1739957028298,-500.0,0.00014273,2]
[353605819,1739957028326,-916.97,0.00014273,2]
[353605820,1739957028356,-500.0,0.00014273,2]
[353605821,1739957028386,-500.0,0.00014273,2]
[353605822,1739957028417,-571.77,0.00014273,2]
[353605823,1739957028446,-500.0,0.00014273,2]
[353605824,1739957028476,-535.59,0.00014273,2]
[353605825,1739957028506,-543.64,0.00014273,2]
[353605826,1739957028537,-646.22,0.00014273,2]
[353605827,1739957028566,-588.0024886,0.00014273,2]
[353605828,1739957028596,-1263.66,0.00014273,2]
[353605829,1739957028626,-865.23,0.00014273,2]
[353605830,1739957028656,-592.33,0.00014273,2]
[353605831,1739957028686,-1825.346312,0.00014273,2]
[353605832,1739957028715,-646.68,0.00014273,2]
[353605833,1739957028745,-597.97,0.00014273,2]
[353605834,1739957028774,-694.2,0.00014273,2]
[353605835,1739957028803,-500.0,0.00014273,2]
[353605836,1739957028834,-500.0,0.00014273,2]
[353605837,1739957028870,-500.0,0.00014273,2]
[353605838,1739957028901,-1174.15,0.00014273,2]
[353605839,1739957028934,-500.0,0.00014273,2]
[353605840,1739957028970,-878.0,0.00014273,2]
[353605841,1739957029002,-500.0,0.00014273,2]
[353605842,1739957029034,-825.52,0.00014273,2]
[353605843,1739957029065,-500.0,0.00014273,2]
[353605844,1739957029098,-500.0,0.00014273,2]
[353605845,1739957029127,-500.0,0.00014273,2]
[353605846,1739957029158,-500.0,0.00014273,2]
[353605847,1739957029189,-516.38,0.00014273,2]
[353605848,1739957029220,-500.0,0.00014273,2]
[353605849,1739957029249,-500.0,0.00014273,2]
[353605850,1739957029279,-1264.71,0.00014273,2]
[353605851,1739957029308,-906.18,0.00014273,2]
[353605852,1739957029337,-500.0,0.00014273,2]
[353605853,1739957029366,-500.0,0.00014273,2]
[353605854,1739957029396,-500.0,0.00014273,2]
[353605855,1739957029426,-565.96,0.00014273,2]
[353605856,1739957029457,-500.0,0.00014273,2]
[353605857,1739957029487,-988.21,0.00014273,2]
[353605858,1739957029516,-500.0,0.00014273,2]
[353605859,1739957029544,-1121.54,0.00014273,2]
[353605860,1739957029572,-500.52,0.00014273,2]
[353605861,1739957029600,-500.0,0.00014273,2]
[353605862,1739957029627,-500.0,0.00014273,2]
[353605863,1739957029656,-500.0,0.00014273,2]
[353605864,1739957029686,-1126.66,0.00014273,2]
[353605865,1739957029714,-628.69,0.00014273,2]
[353605866,1739957029741,-500.0,0.00014273,2]
[353605867,1739957029769,-500.0,0.00014273,2]
[353605868,1739957029798,-500.0,0.00014273,2]
[353605869,1739957029827,-500.0,0.00014273,2]
[353605870,1739957029856,-883.27,0.00014273,2]
[353605871,1739957029887,-777.31,0.00014273,2]
[353605872,1739957029919,-500.0,0.00014273,2]
[353605873,1739957029950,-509.79727414,0.00014273,2]
[353605874,1739957029980,-601.15,0.00014273,2]
[353605875,1739957030008,-500.0,0.00014273,2]
[353605876,1739957030037,-500.0,0.00014273,2]
[353605877,1739957030065,-653.11,0.00014273,2]
[353605878,1739957030093,-500.0,0.00014273,2]
[353605879,1739957030120,-777.33,0.00014273,2]
[353605880,1739957030147,-500.0,0.00014273,2]
[353605881,1739957030175,-523.08,0.00014273,2]
[353605882,1739957030202,-1044.61,0.00014273,2]
[353605883,1739957030230,-205.32774182,0.00014273,2]
[353605884,1739957030257,-712.57,0.00014273,2]
[353605885,1739957030458,-231.97699912,0.00014273,2]
[353605886,1739957030490,-363.42234282,0.00014273,2]
[353605887,1739957030520,-540.46,0.00014273,2]
[353605888,1739957030551,-777.07,0.00014273,2]
[353605889,1739957030581,-687.05,0.00014273,2]
[353605890,1739957030610,-571.88995804,0.00014273,2]
[353605891,1739957030638,-500.0,0.00014273,2]
[353605892,1739957030666,-879.81,0.00014273,2]
[353605893,1739957030694,-500.0,0.00014273,2]
[353605894,1739957030721,-525.83,0.00014273,2]
[353605895,1739957030749,-625.39,0.00014273,2]
[353605896,1739957030779,-888.05,0.00014273,2]
[353605897,1739957030808,-787.18,0.00014273,2]
[353605898,1739957030837,-500.0,0.00014273,2]
[353605899,1739957030870,-781.66,0.00014273,2]
[353605900,1739957030902,-532.61,0.00014273,2]
[353605901,1739957030933,-596.76,0.00014273,2]
[353605902,1739957030967,-536.22,0.00014273,2]
[353605903,1739957030997,-500.0,0.00014273,2]
[353605904,1739957031028,-500.0,0.00014273,2]
[353605905,1739957031057,-500.0,0.00014273,2]
[353605906,1739957031086,-914.58,0.00014273,2]
[353605907,1739957031115,-500.0,0.00014273,2]
[353605908,1739957031143,-238.32495718,0.00014273,2]
[353605909,1739957031173,-500.0,0.00014273,2]
[353605910,1739957031202,-511.44399271,0.00014273,2]
[353605911,1739957031231,-657.0,0.00014273,2]
[353605912,1739957031260,-500.0,0.00014273,2]
[353605913,1739957031288,-727.68,0.00014273,2]
[353605914,1739957031317,-1554.06,0.00014273,2]
[353605915,1739957031347,-594.44,0.00014273,2]
[353605916,1739957031376,-500.0,0.00014273,2]
[353605917,1739957031405,-500.0,0.00014273,2]
[353605918,1739957031434,-523.95368918,0.00014273,2]
[353605919,1739957031464,-1286.14,0.00014273,2]
[353605920,1739957031493,-539.19,0.00014273,2]
[353605921,1739957031522,-731.14,0.00014273,2]
[353605922,1739957031551,-500.0,0.00014273,2]
[353605923,1739957031580,-523.74,0.00014273,2]
[353605924,1739957031610,-1494.76,0.00014273,2]
[353605925,1739957031640,-500.0,0.00014273,2]
[353605926,1739957031669,-455.10689127,0.00014273,2]
[353605927,1739957031698,-500.0,0.00014273,2]
[353605928,1739957031725,-656.29,0.00014273,2]
[353605929,1739957031753,-500.0,0.00014273,2]
[353605930,1739957031782,-500.0,0.00014273,2]
[353605931,1739957031812,-1380.28,0.00014273,2]
[353605932,1739957031846,-500.0,0.00014273,2]
[353605933,1739957031876,-500.0,0.00014273,2]
[353605934,1739957031907,-500.0,0.00014273,2]
[353605935,1739957031938,-500.0,0.00014273,2]
[353605936,1739957031968,-1469.68,0.00014273,2]
[353605937,1739957031996,-536.39683957,0.00014273,2]
[353605938,1739957032024,-500.0,0.00014273,2]
[353605939,1739957032053,-500.0,0.00014273,2]
[353605940,1739957032082,-500.0,0.00014273,2]
[353605941,1739957032114,-1629.48,0.00014273,2]
[353605942,1739957032145,-500.0,0.00014273,2]
[353605943,1739957032175,-506.69,0.00014273,2]
[353605944,1739957032204,-500.0,0.00014273,2]
[353605945,1739957032233,-1643.27,0.00014273,2]
[353605946,1739957032262,-500.0,0.00014273,2]
[353605947,1739957032291,-500.07,0.00014273,2]
[353605948,1739957032320,-1374.04,0.00014273,2]
[353605949,1739957032350,-500.0,0.00014273,2]
[353605950,1739957032378,-500.0,0.00014273,2]
[353605951,1739957032405,-401.24359029,0.00014273,2]
[353605952,1739957032434,-500.0,0.00014273,2]
[353605953,1739957032462,-500.0,0.00014273,2]
[353605954,1739957032490,-500.0,0.00014273,2]
[353605955,1739957032518,-2880.46,0.00014273,2]
[353605956,1739957032547,-500.0,0.00014273,2]
[353605957,1739957032576,-500.0,0.00014273,2]
[353605958,1739957032604,-500.0,0.00014273,2]
[353605959,1739957032632,-500.0,0.00014273,2]
[353605960,1739957032660,-708.89,0.00014273,2]
[353605961,1739957032691,-1303.36,0.00014273,2]
[353605962,1739957032721,-500.0,0.00014273,2]
[353605963,1739957032752,-500.0,0.00014273,2]
[353605964,1739957032782,-500.0,0.00014273,2]
[353605965,1739957032813,-626.2,0.00014273,2]
[353605966,1739957032845,-500.0,0.00014273,2]
[353605967,1739957032881,-500.0,0.00014273,2]
[353605968,1739957032915,-500.0,0.00014273,2]
[353605969,1739957032947,-691.7,0.00014273,2]
[353605970,1739957032977,-500.0,0.00014273,2]
[353605971,1739957033006,-598.12,0.00014273,2]
[353605972,1739957033036,-500.0,0.00014273,2]
[353605973,1739957033065,-500.0,0.00014273,2]
[353605974,1739957033094,-500.0,0.00014273,2]
[353605975,1739957033125,-1590.92,0.00014273,2]
[353605976,1739957033154,-500.0,0.00014273,2]
[353605977,1739957033184,-629.55,0.00014273,2]
[353605978,1739957033212,-522.59548124,0.00014273,2]
[353605979,1739957033242,-373.27033622,0.00014273,2]
[353605980,1739957033271,-956.27,0.00014273,2]
[353605981,1739957033302,-500.0,0.00014273,2]
[353605982,1739957033332,-500.89,0.00014273,2]
[353605983,1739957033362,-500.0,0.00014273,2]
[353605984,1739957033392,-848.21,0.00014273,2]
[353605985,1739957033422,-508.22003198,0.00014273,2]
[353605986,1739957033452,-500.0,0.00014273,2]
[353605987,1739957033482,-998.89,0.00014273,2]
[353605988,1739957033511,-500.0,0.00014273,2]
[353605989,1739957033542,-782.0,0.00014273,2]
[353605990,1739957033571,-500.0,0.00014273,2]
[353605991,1739957033602,-500.0,0.00014273,2]
[353605992,1739957033632,-840.54,0.00014273,2]
[353605993,1739957033662,-500.0,0.00014273,2]
[353605994,1739957033693,-632.82,0.00014273,2]
[353605995,1739957033724,-1192.42,0.00014273,2]
[353605996,1739957033754,-500.0,0.00014273,2]
[353605997,1739957033785,-500.0,0.00014273,2]
[353605998,1739957033816,-657.73,0.00014273,2]
[353605999,1739957033850,-500.0,0.00014273,2]
[353606000,1739957033882,-1447.73,0.00014273,2]
[353606001,1739957033919,-500.0,0.00014273,2]
[353606002,1739957034202,-825.98,0.00014273,2]
[353606003,1739957034237,-500.0,0.00014273,2]
[353606004,1739957034271,-500.0,0.00014273,2]
[353606005,1739957034303,-719.81,0.00014273,2]
[353606006,1739957034334,-500.0,0.00014273,2]
[353606007,1739957034364,-500.0,0.00014273,2]
[353606008,1739957034395,-1285.19,0.00014273,2]
[353606009,1739957034425,-500.0,0.00014273,2]
[353606010,1739957034457,-500.0,0.00014273,2]
[353606011,1739957034494,-500.0,0.00014273,2]
[353606012,1739957034526,-2760.81,0.00014273,2]
[353606013,1739957034560,-500.0,0.00014273,2]
[353606014,1739957034592,-1429.12,0.00014273,2]
[353606015,1739957034623,-535.98,0.00014273,2]
[353606016,1739957034655,-1108.97,0.00014273,2]
[353606017,1739957034687,-560.79,0.00014273,2]
[353606018,1739957034718,-1725.34,0.00014273,2]
[353606019,1739957034750,-500.0,0.00014273,2]
[353606020,1739957034782,-583.25,0.00014273,2]
[353606021,1739957034816,-515.1089506,0.00014273,2]
[353606022,1739957034847,-500.0,0.00014273,2]
[353606023,1739957034883,-783.42,0.00014273,2]
[353606024,1739957034917,-778.14,0.00014273,2]
[353606025,1739957034950,-500.0,0.00014273,2]
[353606026,1739957034981,-1078.1,0.00014273,2]
[353606027,1739957035013,-500.0,0.00014273,2]
[353606028,1739957035046,-2405.75,0.00014273,2]
[353606029,1739957035078,-5296.1,0.00014273,2]
[353606030,1739957035110,-2043.27,0.00014273,2]
[353606031,1739957035140,-1534.33,0.00014273,2]
[353606032,1739957035169,-500.0,0.00014273,2]
[353606033,1739957035200,-647.07,0.00014273,2]
[353606034,1739957035229,-500.0,0.00014273,2]
[353606035,1739957035260,-1051.18,0.00014273,2]
[353606036,1739957035295,-738.28,0.00014273,2]
[353606037,1739957035327,-500.0,0.00014273,2]
[353606038,1739957035358,-1295.32,0.00014273,2]
[353606039,1739957035389,-1093.24,0.00014273,2]
[353606040,1739957035420,-500.0,0.00014273,2]
[353606041,1739957035451,-2278.72,0.00014273,2]
[353606042,1739957035480,-500.0,0.00014273,2]
[353606043,1739957035512,-1455.08,0.00014273,2]
[353606044,1739957035543,-500.0,0.00014273,2]
[353606045,1739957035576,-500.0,0.00014273,2]
[353606046,1739957035609,-572.16,0.00014273,2]
[353606047,1739957035643,-929.06,0.00014273,2]
[353606048,1739957035679,-967.27,0.00014273,2]
[353606049,1739957035716,-1119.05,0.00014273,2]
[353606050,1739957035750,-500.0,0.00014273,2]
[353606051,1739957035784,-500.0,0.00014273,2]
[353606052,1739957035820,-500.0,0.00014273,2]
[353606053,1739957035855,-770.13,0.00014273,2]
[353606054,1739957035892,-500.0,0.00014273,2]
[353606055,1739957035928,-4255.25,0.00014273,2]
[353606056,1739957035962,-500.0,0.00014273,2]
[353606057,1739957035994,-1120.64,0.00014273,2]
[353606058,1739957036025,-500.0,0.00014273,2]
[353606059,1739957036056,-500.0,0.00014273,2]
[353606060,1739957036087,-1021.92,0.00014273,2]
[353606061,1739957036118,-680.04,0.00014273,2]
[353606062,1739957036150,-500.0,0.00014273,2]
[353606063,1739957036181,-500.0,0.00014273,2]
[353606064,1739957036210,-500.0,0.00014273,2]
[353606065,1739957036239,-1015.43,0.00014273,2]
[353606066,1739957036271,-500.0,0.00014273,2]
[353606067,1739957036301,-500.0,0.00014273,2]
[353606068,1739957036330,-500.0,0.00014273,2]
[353606069,1739957036360,-500.0,0.00014273,2]
[353606070,1739957036389,-909.24,0.00014273,2]
[353606071,1739957036420,-500.0,0.00014273,2]
[353606072,1739957036452,-500.0,0.00014273,2]
[353606073,1739957036484,-500.0,0.00014273,2]
[353606074,1739957036516,-500.0,0.00014273,2]
[353606075,1739957036546,-500.0,0.00014273,2]
[353606076,1739957036576,-1252.15,0.00014273,2]
[353606077,1739957036604,-500.0,0.00014273,2]
[353606078,1739957036632,-500.0,0.00014273,2]
[353606079,1739957036661,-724.82,0.00014273,2]
[353606080,1739957036691,-604.92,0.00014273,2]
[353606081,1739957036722,-855.46,0.00014273,2]
[353606082,1739957036752,-155.81498,0.00014273,2]
[353606083,1739957036784,-500.0,0.00014273,2]
[353606084,1739957036815,-736.01,0.00014273,2]
[353606085,1739957036846,-1283.84,0.00014273,2]
[353606086,1739957036882,-500.0,0.00014273,2]
[353606087,1739957036916,-500.0,0.00014273,2]
[353606088,1739957036950,-745.89,0.00014273,2]
[353606089,1739957036984,-1926.5,0.00014273,2]
[353606090,1739957037015,-307.85,0.00014273,2]
[353606091,1739957037046,-1055.67,0.00014273,2]
[353606092,1739957037076,-627.81,0.00014273,2]
[353606093,1739957037106,-189.39,0.00014273,2]
[353606094,1739957037136,-500.0,0.00014273,2]
[353606095,1739957037165,-776.57,0.00014273,2]
[353606096,1739957037195,-500.0,0.00014273,2]
[353606097,1739957037225,-733.08,0.00014273,2]
[353606098,1739957037255,-547.75,0.00014273,2]
[353606099,1739957037285,-500.0,0.00014273,2]
[353606100,1739957037317,-529.59,0.00014273,2]
[353606101,1739957037348,-4362.54,0.00014273,2]
[353606102,1739957037376,-500.0,0.00014273,2]
[353606103,1739957037406,-500.0,0.00014273,2]
[353606104,1739957037435,-500.0,0.00014273,2]
[353606105,1739957037465,-500.0,0.00014273,2]
[353606106,1739957037494,-691.67,0.00014273,2]
[353606107,1739957037523,-580.48,0.00014273,2]
[353606108,1739957037552,-1333.98,0.00014273,2]
[353606109,1739957037583,-2090.9,0.00014273,2]
[353606110,1739957037614,-823.1,0.00014273,2]
[353606111,1739957037643,-552.5,0.00014273,2]
[353606112,1739957037672,-733.25,0.00014273,2]
[353606113,1739957037701,-1331.05,0.00014273,2]
[353606114,1739957037918,-500.0,0.00014273,2]
[353606115,1739957037955,-153.40119026,0.00014338,2]
[353606116,1739957037987,-554.43371022,0.00014356,2]
[353606117,1739957038018,-500.0,0.00014356,2]
[353606118,1739957038050,-543.01,0.00014356,2]
[353606119,1739957038080,-634.82,0.00014356,2]
[353606120,1739957038110,-250.8152368,0.00014356,2]
[353606121,1739957038139,-500.0,0.00014356,2]
[353606122,1739957038169,-541.04,0.00014356,2]
[353606123,1739957038198,-500.0,0.00014356,2]
[353606124,1739957038227,-725.34,0.00014356,2]
[353606125,1739957038256,-778.48,0.00014356,2]
[353606126,1739957038285,-500.0,0.00014356,2]
[353606127,1739957038314,-500.0,0.00014356,2]
[353606128,1739957038357,-633.81,0.00014356,2]
[353606129,1739957038388,-562.62,0.00014356,2]
[353606130,1739957038418,-844.44,0.00014356,2]
[353606131,1739957038449,-500.0,0.00014356,2]
[353606132,1739957038479,-500.0,0.00014356,2]
[353606133,1739957038509,-500.0,0.00014356,2]
[353606134,1739957038539,-512.33069291,0.00014356,2]
[353606135,1739957038569,-722.42,0.00014356,2]
[353606136,1739957038598,-510.18,0.00014356,2]
[353606137,1739957038627,-500.0,0.00014356,2]
[353606138,1739957038656,-650.55,0.00014356,2]
[353606139,1739957038686,-500.0,0.00014356,2]
[353606140,1739957038715,-500.0,0.00014356,2]
[353606141,1739957038745,-500.0,0.00014356,2]
[353606142,1739957038777,-1055.45,0.00014356,2]
[353606143,1739957038807,-500.0,0.00014356,2]
[353606144,1739957038838,-500.0,0.00014356,2]
[353606145,1739957038871,-500.0,0.00014356,2]
[353606146,1739957038902,-691.51,0.00014356,2]
[353606147,1739957038933,-909.51,0.00014356,2]
[353606148,1739957038964,-505.68013476,0.00014356,2]
[353606149,1739957038997,-500.0,0.00014356,2]
[353606150,1739957039031,-667.83,0.00014356,2]
[353606151,1739957039062,-500.0,0.00014356,2]
[353606152,1739957039093,-531.54,0.00014356,2]
[353606153,1739957039131,-647.18,0.00014356,2]
[353606154,1739957039165,-500.0,0.00014356,2]
[353606155,1739957039198,-500.0,0.00014356,2]
[353606156,1739957039232,-930.4,0.00014356,2]
[353606157,1739957039265,-500.0,0.00014356,2]
[353606158,1739957039299,-625.34,0.00014356,2]
[353606159,1739957039332,-500.0,0.00014356,2]
[353606160,1739957039363,-515.28,0.00014356,2]
[353606161,1739957039395,-509.07050351,0.00014356,2]
[353606162,1739957039426,-551.52,0.00014356,2]
[353606163,1739957039457,-500.0,0.00014356,2]
[353606164,1739957039488,-500.0,0.00014356,2]
[353606165,1739957039519,-500.0,0.00014356,2]
[353606166,1739957039550,-770.16,0.00014356,2]
[353606167,1739957039581,-500.0,0.00014356,2]
[353606168,1739957039611,-526.13323524,0.00014356,2]
[353606169,1739957039641,-500.0,0.00014356,2]
[353606170,1739957039672,-500.0,0.00014356,2]
[353606171,1739957039702,-500.0,0.00014356,2]
[353606172,1739957039732,-500.0,0.00014356,2]
[353606173,1739957039763,-512.49,0.00014356,2]
[353606174,1739957039794,-533.08,0.00014356,2]
[353606175,1739957039825,-628.45,0.00014356,2]
[353606176,1739957039858,-743.05,0.00014356,2]
[353606177,1739957039899,-500.0,0.00014356,2]
[353606178,1739957039934,-1540.98,0.00014356,2]